Cogmind - Beta 15 @@@ ROGUE MODE // 2025.05.11 @ 21:04:28 Player: Spitfire Result: Destroyed by D-53 Grenadier with Mini Grenade Launcher Performance ------------- Evolutions (0) 0 Regions Visited (2) 400 Robots Destroyed (14) 70 Value Destroyed (249) 249 Prototype IDs (2) 40 Alien Tech Used (0) 0 Bonus (0) 0 TOTAL SCORE: 759 Bonus ------- None Cogmind --------- Core Integrity 0/250 Matter 104/300 Energy 99/100 System Corruption 3% Temperature Cool (0) Movement Core (50) Location -10/Mines Parts ------- > --- POWER (1) -------- (None) > --- PROPULSION (2) --- (None) > --- UTILITY (2) ------ (None) > --- WEAPON (2) ------- (None) > --- INVENTORY (5) ---- Ion Engine Large Storage Unit Improved Targeting Computer Hardened Light Armor Plating Tractor Beam Peak State ------------ > --- POWER ------------ Ion Engine > --- PROPULSION ------- Improved Treads Improved Treads > --- UTILITY ---------- Large Storage Unit Improved Targeting Computer > --- WEAPON ----------- Assault Rifle Light Cannon > --- INVENTORY -------- Ion Engine Light Nuclear Core Light Treads Light Treads Large Storage Unit Improved Targeting Computer Improved Targeting Computer Improved Targeting Computer Tractor Beam Medium Laser Medium Laser Light Assault Rifle Grenade Launcher Datajack Flail [Rating: 12] Favorites ----------- Power Ion Engine Engine Ion Engine Propulsion Light Treads Treads Light Treads Utility Large Storage Unit Device Tractor Beam Storage Large Storage Unit Processor Improved Targeting Computer Protection Hardened Light Armor Plating Weapon Assault Rifle Energy Gun Medium Laser Ballistic Gun Assault Rifle Ballistic Cannon Light Cannon Launcher Grenade Launcher Build | -11 -10 -10 ------- Run | Yrd Mat Min Slots Evolved . | . . . Power . | . . . Propulsion . | . . . Utility . | . . . Weapon . | . . . Parts Attached 21 | 7 11 3 Power 1 | 1 . . Engine 1 | 1 . . Core . | . . . Reactor . | . . . Propulsion 6 | 2 4 . Treads 6 | 2 4 . Leg . | . . . Wheel . | . . . Hover . | . . . Flight . | . . . Utility 8 | 2 5 1 Device 1 | . 1 . Storage 4 | 2 2 . Processor 2 | . 2 . Hackware . | . . . Protection 1 | . . 1 Artifact . | . . . Weapon 6 | 2 2 2 Energy Gun 1 | 1 . . Energy Cannon . | . . . Ballistic Gun 3 | 1 1 1 Ballistic Cannon 1 | . 1 . Launcher 1 | . . 1 Special Weapon . | . . . Impact Weapon . | . . . Slashing Weapon . | . . . Piercing Weapon . | . . . Special Melee Weapon . | . . . Unidentified Prototypes . | . . . Parts Lost 8 | . . 8 Power . | . . . Propulsion 2 | . . 2 Utility 2 | . . 2 Weapon 4 | . . 4 Highest Loss Streak 8 | . . 8 To Critical Strikes . | . . . Average Backups 10 | 4 11 14 Power 1 | . 1 2 Propulsion 2 | 2 2 2 Utility 2 | . 2 6 Weapon 3 | . 3 2 Tool/Special . | . . . Unused Backups 14 | . 4 10 Power 3 | . 1 2 Propulsion 4 | . 2 2 Utility 4 | . . 4 Weapon 2 | . 1 1 Tool/Special 1 | . . 1 Average Slot Usage (%) 99 | . 100 93 Engine 14 | . 14 14 Treads 27 | . 28 26 Device 3 | . 3 . Storage 17 | . 17 14 Processor 7 | . 6 10 Ballistic Gun 14 | . 14 16 Ballistic Cannon 12 | . 12 6 Peak Build Rating 12 | 7 12 12 Average Rating 8 | 5 8 11 On Entrance 6 | . 7 12 Naked Turns . | . . . Heaviest Build 33 | 19 31 33 Greatest Support 46 | 40 46 46 Greatest Overweight (x) 1 | . . 1 Average Overweight (x) . | . . . Largest Inventory Capacity 15 | 8 15 15 Average Capacity 12 | 7 13 14 Most Carried 15 | 5 15 15 Average Carried 10 | 4 11 14 Final Capacity 15 | 8 15 5 Final Carried 15 | 5 15 5 Class Distribution -------------------- 100% | Mutant Dominant Class ---------------- Mutant | -10/Materials Mutant | -10/Mines Resources | -11 -10 -10 ----------- Run | Yrd Mat Min Matter Collected 570 | 261 309 . Remotely 135 | . 135 . Salvage Created 370 | 65 265 40 Parts 21 | 3 18 . Haulers Intercepted 1 | . 1 . Recyclers Shooed . | . . . Parts Field Recycled . | . . . Retrieved Matter . | . . . Parts Self-Destructed . | . . . Prevented . | . . . Kills | -11 -10 -10 ------- Run | Yrd Mat Min Combat Hostiles Destroyed 20 | . 10 10 Guns 4 | . 4 . Cannons 6 | . 6 . AOE 10 | . . 10 Classes Destroyed 7 | 1 5 1 Hauler 1 | . 1 . Recycler 1 | 1 . . Operator 1 | . 1 . Watcher 1 | . 1 . Swarmer 6 | . 6 . Grunt 4 | . 4 . Assembled 10 | . . 10 Best Kill Streak 10 | 1 3 10 Combat Bots Only 10 | . 3 10 Max Kills in Single Turn 3 | 1 1 3 Gunslinging . | . . . Exploded 3 | . . 3 Melee . | . . . Uniques/NPCs Destroyed . | . . . Combat | -11 -10 -10 -------- Run | Yrd Mat Min Hostile Shots Fired 117 | . 55 62 Missed 39 | . 21 18 Hits 78 | . 34 44 Melee 4 | . . 4 Projectile 74 | . 34 40 AOE 14 | . . 14 Critical Strikes 3 | . . 3 Damage Taken 1448 | . 300 1148 Core 265 | . 38 227 Absorbed by Shields . | . . . Core Remaining (%) 100 | 100 . . Volleys Fired 57 | 2 45 10 Largest 2 | 2 2 2 Hottest 70 | 70 50 50 Shots Fired 109 | 4 90 15 Gun 56 | 4 45 7 Cannon 46 | . 45 1 Launcher 7 | . . 7 Special . | . . . Kinetic 100 | 2 90 8 Thermal 2 | 2 . . Explosive 7 | . . 7 Electromagnetic . | . . . Robot Hit Streak 6 | 2 6 2 Robot Miss Streak 8 | 1 8 3 Penetration Max . | . . . Secondary Targets . | . . . Shots Hit Robots 48 | 3 41 4 Core Hits 50 | 2 19 29 Critical Kills . | . . . Critical Parts Destroyed . | . . . Critical Strikes 2 | . 2 . Blast 2 | . 2 . Melee Attacks . | . . . Impact . | . . . Slashing . | . . . Piercing . | . . . Sneak Attacks . | . . . Combat Hostiles . | . . . Follow-up Attacks . | . . . Damage Inflicted 1481 | 39 654 788 Guns 338 | 39 279 20 Cannons 341 | . 341 . Explosions 768 | . . 768 Melee . | . . . Ramming 34 | . 34 . Kinetic 653 | 13 620 20 Thermal 26 | 26 . . Explosive 768 | . . 768 Electromagnetic . | . . . Impact . | . . . Slashing . | . . . Piercing . | . . . Highest Corruption 3 | . . 3 Average Corruption 3 | . . 3 Corruption Purged . | . . . Corruption Blocked . | . . . Overload Shots . | . . . Overflow Damage 52 | . . 52 Projectiles . | . . . Explosions 52 | . . 52 Melee . | . . . Knockbacks 1 | . 1 . Impact . | . . . Kinetic 1 | . 1 . Secondary . | . . . Self-Inflicted Damage 10 | . . 10 Shots 2 | . . 2 Rammed 8 | . 8 . Targets Rammed 8 | . 8 . Kicked . | . . . Crushed . | . . . Highest Temperature 20 | 9 2 20 Average Temperature 5 | 6 2 9 Received Heat Transfer 86 | . 66 20 Siege Activations . | . . . Martial Activations . | . . . Shielding Activations . | . . . Robots Disrupted . | . . . Combat Hostiles . | . . . Robots Corrupted . | . . . Combat Hostiles . | . . . Parts Fried . | . . . Impact Corruptions . | . . . Robots Melted . | . . . Combat Hostiles . | . . . Parts Melted . | . . . Heat Transferred 74 | 74 . . Parts Sabotaged . | . . . Parts Stolen . | . . . Parts Stripped . | . . . Power Chain Reactions . | . . . Alert | -11 -10 -10 ------- Run | Yrd Mat Min Maximum Alert Level . | . . . Low Security (%) 100 | 100 100 100 Level 1 . | . . . Level 2 . | . . . Level 3 . | . . . Level 4 . | . . . Level 5 . | . . . High Security . | . . . Max Security . | . . . Peak Influence 127 | . 127 14 Initial 8 | . . 8 Average 49 | . 62 4 Influence Increases 308 | 5 287 16 Destroy 0b10 Robot/C 200 | . 200 . Destroy 0b10 Robot/NC 20 | 5 15 . Destroy Leader 54 | . 54 . Successful Hack 18 | . 18 . Destroy Structure 16 | . . 16 Influence Decreases 308 | 5 264 39 Entered New Map 15 | . . 15 Time Decay 287 | 5 264 18 Lost Part 6 | . . 6 Squads Dispatched 2 | . 2 . Investigation . | . . . Extermination . | . . . Reinforcement 2 | . 2 . Assault . | . . . Garrison . | . . . Intercept . | . . . Searches Triggered . | . . . Construction Impeded . | . . . Haulers Reinforced . | . . . Active Scanning Responses . | . . . Cargo Convoy Interrupts . | . . . Stealth | -11 -10 -10 --------- Run | Yrd Mat Min Distress Signals . | . . . Communications Jammed . | . . . Distress Signals . | . . . Times Spotted 41 | . 19 22 Peak Tracking Total 18 | . 4 18 Tactical Retreats . | . . . Traps | -11 -10 -10 ------- Run | Yrd Mat Min Traps Triggered . | . . . Indirectly . | . . . Trap Hack Attempts . | . . . Triggered . | . . . Disarmed . | . . . Reprogrammed . | . . . Reused . | . . . Traps Extracted . | . . . Installed . | . . . Triggered . | . . . Machines | -11 -10 -10 ---------- Run | Yrd Mat Min Machines Disabled . | . . . Max in Single Turn . | . . . Machines Repaired . | . . . Machines Dismantled . | . . . Machines Sabotaged . | . . . Overloaded Fab Kills . | . . . Hacking | -11 -10 -10 --------- Run | Yrd Mat Min Machines Accessed 2 | . 2 . Terminals 2 | . 2 . Fabricators . | . . . Repair Stations . | . . . Recycling Units . | . . . Scanalyzers . | . . . Garrison Access . | . . . Total Hacks 9 | . 9 . Successful 4 | . 4 . Failed 5 | . 5 . Catastrophic . | . . . Database Lockouts . | . . . Manual 7 | . 7 . Terminals 9 | . 9 . Fabricators . | . . . Repair Stations . | . . . Recycling Units . | . . . Scanalyzers . | . . . Garrison Access . | . . . Terminal Hacks 3 | . 3 . Prototype ID Bank 1 | . 1 . Branch Access Points 1 | . 1 . Hauler Manifests 1 | . 1 . Fabricator Hacks . | . . . Repair Station Hacks . | . . . Recycling Unit Hacks . | . . . Scanalyzer . | . . . Garrison Access Hacks . | . . . Unauthorized Hacks 1 | . 1 . Terminals 1 | . 1 . Operators 1 | . 1 . Fabricators . | . . . Repair Stations . | . . . Recycling Units . | . . . Scanalyzers . | . . . Garrison Access . | . . . Data Cores Recovered . | . . . Used . | . . . Hacking Detections 1 | . 1 . Full Trace Events . | . . . Feedback Events . | . . . Feedback Blocked . | . . . Robot Schematics Acquired . | . . . Robots Built . | . . . Authchips . | . . . Time . | . . . Total Robot Build Rating . | . . . Part Schematics Acquired . | . . . Parts Built . | . . . Authchips . | . . . Time . | . . . Total Part Build Rating . | . . . Parts Repaired . | . . . Time . | . . . Parts Recycled . | . . . Recycled Matter . | . . . Retrieved Matter . | . . . Retrieved Components . | . . . Parts Scanalyzed . | . . . Part Schematics Acquired . | . . . Parts Damaged . | . . . Bothacking | -11 -10 -10 ------------ Run | Yrd Mat Min Used RIF Installer . | . . . Robots Hacked . | . . . Non-combat . | . . . Combat . | . . . Robot Hacks Applied . | . . . Relay Couplers Released . | . . . Fabnet Peak Effective % . | . . . Robots Rewired . | . . . Allies Hacked . | . . . Hacks Repelled . | . . . Allies | -11 -10 -10 -------- Run | Yrd Mat Min Total Allies . | . . . Largest Group . | . . . Highest-Rated Group . | . . . Highest-Rated Ally . | . . . Total Orders . | . . . Ally Attacks . | . . . Total Damage . | . . . Kills . | . . . Allies Corrupted . | . . . Allies Melted . | . . . Intel | -11 -10 -10 ------- Run | Yrd Mat Min Active Infowar (turns) . | . . . Robot Analysis Total . | . . . Derelict Logs Recovered . | . . . Drone Launches . | . . . Drone Recoveries . | . . . Exploration | -11 -10 -10 ------------- Run | Yrd Mat Min Turns Passed 843 | 124 658 61 Spaces Moved 385 | 67 298 20 Core 16 | 14 . 2 Treads 369 | 53 298 18 Legs . | . . . Wheels . | . . . Hover . | . . . Flight . | . . . Fastest Speed 50 | 50 160 50 Average Speed 155 | 137 160 153 Slowest Speed 240 | 160 160 240 Overloaded Moves . | . . . Propulsion Burnouts . | . . . Robots Hopped . | . . . Potential Cave-ins . | . . . Cave-ins Triggered . | . . . Exploration Rate (%) 20 | 5 42 15 Regions Visited 2 Branch Regions 1 Pre-discovered Areas . | . . . Known Exits Taken 1 | . 1 . Unknown Exits Taken 1 | 1 . . Scrap Searched . | . . . Spaces Dug . | . . . Terrain Destroyed 18 | . . 18 Melee . | . . . Projectile . | . . . AOE 18 | . . 18 Terrain Rammed . | . . . Walls Destroyed . | . . . Machines Disabled . | . . . Actions | -11 -10 -10 --------- Run | Yrd Mat Min Total 518 | 92 390 36 Wait 12 | 11 1 . Move 383 | 66 297 20 Hop . | . . . Pick Up 22 | 6 16 . Fast Attach 6 | 6 . . Attach 5 | 1 1 3 Detach . | . . . Swap 11 | . 10 1 Drop 14 | . 12 2 Fire 57 | 2 45 10 Melee . | . . . Ram . | . . . Kick . | . . . Crush 8 | . 8 . Escape Stasis . | . . . Rewire . | . . . Trap . | . . . Miscellaneous . | . . . Route ------- -11/Scrapyard -10/Materials (discovered 3 exits: [*Mat] / *Min x2) -10/Mines History --------- Turn | Location | Event 36 | -11/Scrapyard | Discovered new exit (range 16) 125 | -11/Scrapyard | Entered Materials 300 | -10/Materials | Identified exit to Mines 314 | -10/Materials | Build established: Mutant 661 | -10/Materials | Discovered new exit (range 16) 783 | -10/Materials | Entered Mines 805 | -10/Mines | Assembled infested the area 823 | -10/Mines | Core integrity fell below 50% 843 | -10/Mines | Core integrity fell below 20% 844 | -10/Mines | Destroyed by D-53 Grenadier with Mini Grenade Launcher Last Messages --------------- 00828_ K-01 Serf system corrupted by crushing effect. 00828_ K-01 Serf knocked back. 00828_ as-69747 destroyed. 00828_ as-08830 destroyed. 00830_ as-70570 destroyed. 00830_ as-05494 destroyed. 00830_ as-24626 destroyed. 00830_ as-54795 destroyed. 00830_ K-01 Serf destroyed. 00832_ Assault Rifle destroyed. 00836_ Lgt. Cannon destroyed. 00838_ Imp. Treads destroyed. 00838_ Hrd. Light Armor Plating destroyed. 00839_ The unstable cave ceiling collapses. 00840_ Imp. Treads destroyed. 00842_ Dropped Lrg. Storage Unit. 00843_ Dropped Ion Engine. 00844_ The unstable cave ceiling collapses. 00844_ Lgt. Assault Rifle destroyed. Map ----- +----------------------------------------------------+ | | | | | | | | | | | | | | | | | | | | | | | | | ?????????????????????????????????????????????????? | | ?????????????????????????????????????????????????? | | ???????????????????????????????######????????????? | | ??????????????????????????????# ????????????? | | ????????????????????????????## ???????????? | | ????????????????????###????# ???????????? | | ????????????????????# ##?? ??????????? | | ???????????????????## ### ??????????? | | ???????????????????# # % ??????????? | | ?????#######??????## #??????????? | | ?????# #??????# #???????????? | | ?????# #####??# #????????????? | | ?????# #??# #!=! #????????????? | | ?????# ### #### *!=@ #????????????? | | ?????# #?# */ #????????????? | | ?????# #?# ###????????????? | | ?????#######?#### ##??????????????? | | ????????????????# ????????????? | | ????????????????## ???????????? | | ?????????????????####### ####### #??????????? | | ???????????????????????## #??????????????????? | | ????????????????????????# dd ##??????????????????? | | ????????????????????????? ##???????????????????? | | ????????????????????????? ##????????????????????? | | ????????????????????????? ##?????????????????????? | | ????????????????????????? #??????????????????????? | | ????????????????????????? #??????????????????????? | | ?????????????????????????#???????????????????????? | | ?????????????????????????????????????????????????? | | ?????????????????????????????????????????????????? | | ?????????????????????????????????????????????????? | | ?????????????????????????????????????????????????? | | ?????????????????????????????????????????????????? | | ?????????????????????????????????????????????????? | | ?????????????????????????????????????????????????? | | ?????????????????????????????????????????????????? | | ?????????????????????????????????????????????????? | | ?????????????????????????????????????????????????? | +----------------------------------------------------+ Best States ------------- Heat Dissipation 25 Energy Generation 10 Energy Capacity 250 Matter Stores 285 Matter Capacity 300 Sight Range 16 Terrain Scan Density 10 Armor Coverage 150 Evasion (%) 50 Targeting Accuracy 6 Recoil Reduction 2 Item Schematics ----------------- None Robot Schematics ------------------ None Fabricated ------------ Nothing Repaired ---------- Nothing Alien Tech Used ----------------- None Achievements -------------- None Challenges ------------ None Game ------ Seed AngularTransdimensionalLance Manual? 0 Play Time 00:12:07 Cumulative 17.1 hours Start 2025.05.11 @ 20:54:09 End 2025.05.11 @ 21:04:28 Sessions 1 Manual Loads 0 Difficulty Rogue Special Mode None Game No. 14 Rogue 14 Adventurer 0 Explorer 0 Win Type - Total 1 Types 1/0/0/0/0/0/0/0/0/0 Lore% 9 Gallery% 20 Achievement% 22 Wizard Run 0 Options --------- Layout 1 ASCII 0 Keyboard 0 Movement Mouse Keybinds 0 Fullscreen 2 Font 24/Terminus Map View 50x35 Zoom Use 0% Tactical HUD 1 Map Filters NONE Filters NONE Steam 1 RUN: 98cc0047-759f-47e3-b239-ee7ee7f5b8c5